[Event "Early-Titled-Tuesday-Blitz-February-06-2024"]
[Site "Chess.com"]
[Date "2024.02.06"]
[Round "10"]
[White "Zurability"]
[Black "winniethepooh04"]
[Result "1-0"]
[WhiteElo "2739"]
[BlackElo "2519"]
[TimeControl "180+1"]
[EndTime "9:53:22 PST"]
[Termination "Zurability won by resignation"]

1. e4 {[%clk 0:02:56.6]} 1... e6 {[%clk 0:02:59.4]} 2. d4 {[%clk 0:02:50.2]}
2... d5 {[%clk 0:02:59.7]} 3. Nd2 {[%clk 0:02:50.4]} 3... c5 {[%clk 0:02:59.4]}
4. exd5 {[%clk 0:02:49.4]} 4... Qxd5 {[%clk 0:03:00.3]} 5. Ngf3 {[%clk
0:02:49.4]} 5... cxd4 {[%clk 0:03:00.5]} 6. Bc4 {[%clk 0:02:49.5]} 6... Qd6
{[%clk 0:03:00.9]} 7. O-O {[%clk 0:02:50.1]} 7... Nf6 {[%clk 0:03:01.3]} 8. Nb3
{[%clk 0:02:50.6]} 8... Nc6 {[%clk 0:03:01.6]} 9. Nbxd4 {[%clk 0:02:51]} 9...
Nxd4 {[%clk 0:03:02.5]} 10. Nxd4 {[%clk 0:02:51.4]} 10... a6 {[%clk 0:03:03.1]}
11. c3 {[%clk 0:02:36.9]} 11... Qc7 {[%clk 0:03:02.6]} 12. Bb3 {[%clk
0:02:28.2]} 12... Be7 {[%clk 0:03:02]} 13. Qf3 {[%clk 0:02:28.1]} 13... O-O
{[%clk 0:03:01.4]} 14. Bf4 {[%clk 0:02:26.4]} 14... Bd6 {[%clk 0:03:01]} 15.
Bxd6 {[%clk 0:02:24.1]} 15... Qxd6 {[%clk 0:03:01.9]} 16. Rad1 {[%clk
0:02:24.2]} 16... Qc7 {[%clk 0:03:02.4]} 17. Rfe1 {[%clk 0:02:23.4]} 17... Bd7
{[%clk 0:03:02.4]} 18. Qg3 {[%clk 0:02:20.1]} 18... Qxg3 {[%clk 0:03:01.4]} 19.
hxg3 {[%clk 0:02:21]} 19... Rad8 {[%clk 0:03:01.5]} 20. f3 {[%clk 0:02:20.5]}
20... Bc8 {[%clk 0:02:59.1]} 21. Kf2 {[%clk 0:02:19.7]} 21... Rd7 {[%clk
0:02:55.4]} 22. Nc2 {[%clk 0:01:50.3]} 22... Rfd8 {[%clk 0:02:52.2]} 23. Rxd7
{[%clk 0:01:48.9]} 23... Rxd7 {[%clk 0:02:52.2]} 24. Ne3 {[%clk 0:01:48.3]}
24... Kf8 {[%clk 0:02:51.6]} 25. Rd1 {[%clk 0:01:48.3]} 25... Rxd1 {[%clk
0:02:50.8]} 26. Nxd1 {[%clk 0:01:43.7]} 26... Ke7 {[%clk 0:02:46.8]} 27. Ne3
{[%clk 0:01:42.9]} 27... Nd7 {[%clk 0:02:42.3]} 28. Bc2 {[%clk 0:01:41.5]} 28...
h6 {[%clk 0:02:40.4]} 29. g4 {[%clk 0:01:31.4]} 29... Kd6 {[%clk 0:02:39.9]} 30.
Nc4+ {[%clk 0:01:31.4]} 30... Kc5 {[%clk 0:02:32.3]} 31. Nd2 {[%clk 0:01:30.5]}
31... Kd6 {[%clk 0:02:32.4]} 32. Ne4+ {[%clk 0:01:29.9]} 32... Ke7 {[%clk
0:02:30.6]} 33. Ke3 {[%clk 0:01:30.3]} 33... Nf6 {[%clk 0:02:27.4]} 34. Nd2
{[%clk 0:01:28]} 34... Bd7 {[%clk 0:02:25.9]} 35. Kd4 {[%clk 0:01:25.6]} 35...
Bc6 {[%clk 0:02:24]} 36. Nc4 {[%clk 0:01:21.4]} 36... Ne8 {[%clk 0:02:15.7]} 37.
Na5 {[%clk 0:01:19.5]} 37... Kd6 {[%clk 0:02:12.8]} 38. Nc4+ {[%clk 0:00:55.4]}
38... Ke7 {[%clk 0:02:10.6]} 39. Kc5 {[%clk 0:00:55.7]} 39... Bd5 {[%clk
0:02:03.8]} 40. Na5 {[%clk 0:00:52.6]} 40... Kd7 {[%clk 0:01:58.9]} 41. Kb6
{[%clk 0:00:42.9]} 41... Kc8 {[%clk 0:01:59]} 42. c4 {[%clk 0:00:42.2]} 1-0

[Event "Early-Titled-Tuesday-Blitz-February-06-2024"]
[Site "Chess.com"]
[Date "2024.02.06"]
[Round "10"]
[White "ural58"]
[Black "Chessdude1987"]
[Result "1-0"]
[WhiteElo "2480"]
[BlackElo "2292"]
[TimeControl "180+1"]
[EndTime "9:53:22 PST"]
[Termination "ural58 won by resignation"]

1. e4 {[%clk 0:02:49.7]} 1... e6 {[%clk 0:02:58.7]} 2. d4 {[%clk 0:02:49.2]}
2... d5 {[%clk 0:02:58.6]} 3. Nc3 {[%clk 0:02:49.1]} 3... Nf6 {[%clk 0:02:57.5]}
4. Bg5 {[%clk 0:02:48.1]} 4... h6 {[%clk 0:02:56.5]} 5. Bxf6 {[%clk 0:02:45.2]}
5... Qxf6 {[%clk 0:02:57.4]} 6. exd5 {[%clk 0:02:34.3]} 6... Bb4 {[%clk
0:02:57.7]} 7. Bb5+ {[%clk 0:02:31]} 7... Bd7 {[%clk 0:02:52]} 8. Bxd7+ {[%clk
0:02:28.4]} 8... Nxd7 {[%clk 0:02:51]} 9. dxe6 {[%clk 0:02:28.5]} 9... Bxc3+
{[%clk 0:02:49.7]} 10. bxc3 {[%clk 0:02:26.9]} 10... Qxe6+ {[%clk 0:02:50.3]}
11. Qe2 {[%clk 0:02:26.9]} 11... Qxe2+ {[%clk 0:02:49]} 12. Nxe2 {[%clk
0:02:26.3]} 12... Nb6 {[%clk 0:02:48.7]} 13. O-O {[%clk 0:02:22.3]} 13... O-O-O
{[%clk 0:02:47.6]} 14. Rfe1 {[%clk 0:02:21.8]} 14... Rhe8 {[%clk 0:02:46.7]} 15.
Nf4 {[%clk 0:02:19.5]} 15... g6 {[%clk 0:02:31.5]} 16. f3 {[%clk 0:02:11.1]}
16... Rxe1+ {[%clk 0:02:28.5]} 17. Rxe1 {[%clk 0:02:10.1]} 17... Kd7 {[%clk
0:02:28.8]} 18. Kf2 {[%clk 0:02:09.6]} 18... Nc4 {[%clk 0:02:19.6]} 19. h4
{[%clk 0:02:06.7]} 19... Kd6 {[%clk 0:02:16.2]} 20. h5 {[%clk 0:02:05.7]} 20...
g5 {[%clk 0:02:15.4]} 21. Nd3 {[%clk 0:02:05.3]} 21... b6 {[%clk 0:01:54.9]} 22.
Ne5 {[%clk 0:02:04.9]} 22... Nxe5 {[%clk 0:01:55.1]} 23. Rxe5 {[%clk 0:02:04.3]}
23... c5 {[%clk 0:01:42]} 24. Ke3 {[%clk 0:02:02.4]} 24... f6 {[%clk 0:01:37.9]}
25. Re4 {[%clk 0:02:01.9]} 25... Kd5 {[%clk 0:01:31.6]} 26. Re7 {[%clk
0:01:55.3]} 26... Kc4 {[%clk 0:01:31.3]} 27. Rxa7 {[%clk 0:01:52.5]} 27... Kxc3
{[%clk 0:01:31.2]} 28. dxc5 {[%clk 0:01:52.6]} 28... bxc5 {[%clk 0:01:29.6]} 29.
Rc7 {[%clk 0:01:52.5]} 29... c4 {[%clk 0:01:28]} 30. Rc6 {[%clk 0:01:50.8]}
30... Re8+ {[%clk 0:01:27.2]} 31. Kf2 {[%clk 0:01:50.6]} 31... Rf8 {[%clk
0:01:25.2]} 32. a4 {[%clk 0:01:50]} 32... Kb4 {[%clk 0:01:21]} 33. a5 {[%clk
0:01:47.6]} 33... Kb5 {[%clk 0:01:20.8]} 34. Rc7 {[%clk 0:01:46.2]} 34... Kxa5
{[%clk 0:01:15.7]} 35. Rxc4 {[%clk 0:01:46.1]} 35... Kb5 {[%clk 0:01:16.1]} 36.
Rc7 {[%clk 0:01:46]} 36... Rd8 {[%clk 0:01:10.5]} 37. Rh7 {[%clk 0:01:44]} 37...
Rd2+ {[%clk 0:01:10.2]} 38. Kg3 {[%clk 0:01:44.5]} 38... Rxc2 {[%clk 0:01:00.2]}
39. Rxh6 {[%clk 0:01:44.6]} 39... Rc6 {[%clk 0:00:59.9]} 40. Rg6 {[%clk
0:01:44.6]} 40... Kc5 {[%clk 0:00:58.8]} 41. h6 {[%clk 0:01:44.8]} 41... Kd5
{[%clk 0:00:53.2]} 42. h7 {[%clk 0:01:44.7]} 1-0

[Event "Early-Titled-Tuesday-Blitz-February-06-2024"]
[Site "Chess.com"]
[Date "2024.02.06"]
[Round "10"]
[White "LyonBeast"]
[Black "Hikaru"]
[Result "1/2-1/2"]
[WhiteElo "3170"]
[BlackElo "3304"]
[TimeControl "180+1"]
[EndTime "9:53:31 PST"]
[Termination "Game drawn by repetition"]

1. e4 {[%clk 0:03:00.9]} 1... e5 {[%clk 0:02:59.5]} 2. Nf3 {[%clk 0:03:01.4]}
2... Nc6 {[%clk 0:03:00]} 3. Bb5 {[%clk 0:03:02.2]} 3... Nf6 {[%clk 0:03:00.5]}
4. O-O {[%clk 0:03:02.8]} 4... Nxe4 {[%clk 0:03:00.9]} 5. d4 {[%clk 0:03:03.5]}
5... Nd6 {[%clk 0:03:01.4]} 6. Bxc6 {[%clk 0:03:04.3]} 6... dxc6 {[%clk
0:03:02]} 7. dxe5 {[%clk 0:03:05]} 7... Nf5 {[%clk 0:03:02.7]} 8. Qxd8+ {[%clk
0:03:05.6]} 8... Kxd8 {[%clk 0:03:03.6]} 9. Nc3 {[%clk 0:03:06.2]} 9... Bd7
{[%clk 0:03:03.3]} 10. h3 {[%clk 0:03:00.1]} 10... h6 {[%clk 0:02:59]} 11. b3
{[%clk 0:02:56.7]} 11... a5 {[%clk 0:02:58]} 12. Bb2 {[%clk 0:02:56.4]} 12...
Kc8 {[%clk 0:02:57.4]} 13. a4 {[%clk 0:02:47.6]} 13... b6 {[%clk 0:02:51.6]} 14.
Rad1 {[%clk 0:02:47.1]} 14... Ne7 {[%clk 0:02:47.2]} 15. Rfe1 {[%clk 0:02:45.8]}
15... c5 {[%clk 0:02:42.4]} 16. Ne2 {[%clk 0:02:42.1]} 16... Ng6 {[%clk
0:02:37.7]} 17. h4 {[%clk 0:02:42.6]} 17... Bg4 {[%clk 0:02:28.8]} 18. Nh2
{[%clk 0:02:42.8]} 18... Bxe2 {[%clk 0:02:26.9]} 19. Rxe2 {[%clk 0:02:43.7]}
19... Nf4 {[%clk 0:02:27.5]} 20. Red2 {[%clk 0:02:35.2]} 20... Be7 {[%clk
0:02:24.8]} 21. g3 {[%clk 0:02:22.2]} 21... Ne6 {[%clk 0:02:24.4]} 22. Nf1
{[%clk 0:02:22.8]} 22... c4 {[%clk 0:02:23.2]} 23. Ne3 {[%clk 0:02:20.3]} 23...
cxb3 {[%clk 0:02:23.2]} 24. cxb3 {[%clk 0:02:21.2]} 24... Bc5 {[%clk 0:02:09.7]}
25. Nd5 {[%clk 0:01:58.7]} 25... h5 {[%clk 0:02:02.5]} 26. Nf4 {[%clk
0:01:49.1]} 26... Nxf4 {[%clk 0:01:12.7]} 27. gxf4 {[%clk 0:01:50]} 27... Kb7
{[%clk 0:01:13.2]} 28. Rd7 {[%clk 0:01:48.1]} 28... Rhf8 {[%clk 0:01:11.8]} 29.
e6 {[%clk 0:01:30.7]} 29... fxe6 {[%clk 0:01:12.7]} 30. Be5 {[%clk 0:01:30.8]}
30... Rac8 {[%clk 0:01:09.9]} 31. Rxg7 {[%clk 0:01:29.6]} 31... Kc6 {[%clk
0:01:08.2]} 32. Kf1 {[%clk 0:01:28]} 32... Bd6 {[%clk 0:01:02]} 33. Rc1+ {[%clk
0:01:26.8]} 33... Kd5 {[%clk 0:01:02.1]} 34. Rd1+ {[%clk 0:01:24.8]} 34... Kc6
{[%clk 0:01:01.3]} 35. Rc1+ {[%clk 0:01:13.1]} 35... Kd5 {[%clk 0:01:01.4]} 36.
Rd1+ {[%clk 0:01:02.8]} 36... Kc6 {[%clk 0:01:01.7]} 1/2-1/2

[Event "Early-Titled-Tuesday-Blitz-February-06-2024"]
[Site "Chess.com"]
[Date "2024.02.06"]
[Round "10"]
[White "ATM622"]
[Black "HelvertHernandez"]
[Result "1-0"]
[WhiteElo "2439"]
[BlackElo "1959"]
[TimeControl "180+1"]
[EndTime "9:53:31 PST"]
[Termination "ATM622 won by resignation"]

1. d4 {[%clk 0:02:57.7]} 1... Nf6 {[%clk 0:02:58.7]} 2. c4 {[%clk 0:02:57.6]}
2... g6 {[%clk 0:02:57.7]} 3. g3 {[%clk 0:02:58]} 3... Bg7 {[%clk 0:02:57.2]} 4.
Bg2 {[%clk 0:02:58.4]} 4... c6 {[%clk 0:02:56.7]} 5. Nf3 {[%clk 0:02:58.8]} 5...
d6 {[%clk 0:02:56]} 6. O-O {[%clk 0:02:59.1]} 6... Bg4 {[%clk 0:02:54]} 7. Nc3
{[%clk 0:02:58.8]} 7... Nbd7 {[%clk 0:02:52.2]} 8. Qc2 {[%clk 0:02:57.3]} 8...
O-O {[%clk 0:02:43.7]} 9. Rd1 {[%clk 0:02:56.6]} 9... Rc8 {[%clk 0:02:38.4]} 10.
h3 {[%clk 0:02:51.6]} 10... Bxf3 {[%clk 0:02:36.1]} 11. Bxf3 {[%clk 0:02:52.5]}
11... Qc7 {[%clk 0:02:33.6]} 12. b4 {[%clk 0:02:31.9]} 12... e5 {[%clk
0:02:30.9]} 13. Be3 {[%clk 0:02:28.9]} 13... exd4 {[%clk 0:02:23.9]} 14. Bxd4
{[%clk 0:02:28]} 14... Ne5 {[%clk 0:02:23.3]} 15. Bxe5 {[%clk 0:02:18.8]} 15...
dxe5 {[%clk 0:02:22.2]} 16. c5 {[%clk 0:02:14.8]} 16... Rcd8 {[%clk 0:02:19.6]}
17. Bg2 {[%clk 0:02:07.4]} 17... Qe7 {[%clk 0:02:13.3]} 18. e3 {[%clk
0:02:05.1]} 18... Qe6 {[%clk 0:02:02.3]} 19. a4 {[%clk 0:02:01.1]} 19... a6
{[%clk 0:01:55.1]} 20. b5 {[%clk 0:01:52.8]} 20... Nd5 {[%clk 0:01:46.5]} 21.
Nxd5 {[%clk 0:01:48.6]} 21... cxd5 {[%clk 0:01:45.6]} 22. bxa6 {[%clk
0:01:44.2]} 22... bxa6 {[%clk 0:01:40.5]} 23. Rab1 {[%clk 0:01:44.5]} 23... Rc8
{[%clk 0:01:36.1]} 24. Bxd5 {[%clk 0:01:43]} 24... Qe7 {[%clk 0:01:34.3]} 25. c6
{[%clk 0:01:36.7]} 25... Rfd8 {[%clk 0:01:29.7]} 26. Rb7 {[%clk 0:01:36.8]}
26... Qxb7 {[%clk 0:01:24.5]} 27. cxb7 {[%clk 0:01:34.2]} 27... Rxc2 {[%clk
0:01:16.7]} 28. Bxf7+ {[%clk 0:01:34.4]} 28... Kxf7 {[%clk 0:01:13.8]} 29. Rxd8
{[%clk 0:01:34.2]} 29... Rb2 {[%clk 0:01:11.5]} 30. b8=Q {[%clk 0:01:34.2]}
30... Rxb8 {[%clk 0:01:10.9]} 31. Rxb8 {[%clk 0:01:35.1]} 31... e4 {[%clk
0:01:08.9]} 32. Rb4 {[%clk 0:01:34.9]} 32... a5 {[%clk 0:01:06.6]} 33. Rxe4
{[%clk 0:01:34.9]} 33... Bc3 {[%clk 0:01:06.5]} 34. Rc4 {[%clk 0:01:34.9]} 34...
Bb4 {[%clk 0:01:06.4]} 35. Kf1 {[%clk 0:01:35.3]} 35... Kf6 {[%clk 0:01:05.7]}
36. Ke2 {[%clk 0:01:35.7]} 36... h5 {[%clk 0:01:05.1]} 37. Kd3 {[%clk 0:01:36]}
37... Kf5 {[%clk 0:01:04.7]} 38. f3 {[%clk 0:01:35.2]} 38... Ke5 {[%clk
0:01:04.4]} 39. h4 {[%clk 0:01:34.8]} 39... Kf5 {[%clk 0:01:03.7]} 40. Rxb4
{[%clk 0:01:27.9]} 40... axb4 {[%clk 0:01:03.1]} 41. Kc4 {[%clk 0:01:28.2]}
41... g5 {[%clk 0:01:00.2]} 42. hxg5 {[%clk 0:01:28.3]} 42... Kxg5 {[%clk
0:00:59.7]} 43. Kxb4 {[%clk 0:01:28.5]} 1-0

[Event "Early-Titled-Tuesday-Blitz-February-06-2024"]
[Site "Chess.com"]
[Date "2024.02.06"]
[Round "10"]
[White "Raud100"]
[Black "Karttunen"]
[Result "0-1"]
[WhiteElo "2430"]
[BlackElo "2664"]
[TimeControl "180+1"]
[EndTime "9:53:39 PST"]
[Termination "Karttunen won by resignation"]

1. d4 {[%clk 0:02:59.6]} 1... Nf6 {[%clk 0:02:58.4]} 2. c4 {[%clk 0:02:59.9]}
2... g6 {[%clk 0:02:58.7]} 3. Nc3 {[%clk 0:03:00]} 3... d6 {[%clk 0:02:58.9]} 4.
e4 {[%clk 0:03:00]} 4... Bg7 {[%clk 0:02:59.2]} 5. f3 {[%clk 0:03:00.6]} 5...
O-O {[%clk 0:02:59]} 6. Be3 {[%clk 0:03:01.2]} 6... e5 {[%clk 0:02:58.8]} 7.
Nge2 {[%clk 0:03:00.6]} 7... Nh5 {[%clk 0:02:41.6]} 8. Qd2 {[%clk 0:02:58.4]}
8... Nc6 {[%clk 0:02:37.1]} 9. O-O-O {[%clk 0:02:57.5]} 9... a6 {[%clk
0:02:29.3]} 10. g4 {[%clk 0:02:52.2]} 10... Nf4 {[%clk 0:02:28.2]} 11. Nxf4
{[%clk 0:02:50.3]} 11... exd4 {[%clk 0:02:20.9]} 12. Nfd5 {[%clk 0:02:42.2]}
12... dxe3 {[%clk 0:02:19.7]} 13. Qxe3 {[%clk 0:02:42.1]} 13... b5 {[%clk
0:02:16.1]} 14. g5 {[%clk 0:02:31.8]} 14... b4 {[%clk 0:02:09.7]} 15. Ne2 {[%clk
0:02:25.1]} 15... Ne5 {[%clk 0:01:49.9]} 16. Ng3 {[%clk 0:02:06.3]} 16... c6
{[%clk 0:01:44.3]} 17. Nb6 {[%clk 0:02:04.3]} 17... Rb8 {[%clk 0:01:36.3]} 18.
c5 {[%clk 0:01:49.4]} 18... Nxf3 {[%clk 0:01:19.2]} 19. Qxf3 {[%clk 0:01:43.5]}
19... Qxg5+ {[%clk 0:01:18.6]} 20. Kb1 {[%clk 0:01:40.9]} 20... Bg4 {[%clk
0:01:11.5]} 21. Qd3 {[%clk 0:01:36.1]} 21... dxc5 {[%clk 0:00:59.7]} 22. Rc1
{[%clk 0:00:33.4]} 22... Rxb6 {[%clk 0:00:58.3]} 23. Rxc5 {[%clk 0:00:32.6]}
23... Qxc5 {[%clk 0:00:57.6]} 0-1

[Event "Early-Titled-Tuesday-Blitz-February-06-2024"]
[Site "Chess.com"]
[Date "2024.02.06"]
[Round "10"]
[White "Road2GM3000"]
[Black "kingofthenil"]
[Result "0-1"]
[WhiteElo "2498"]
[BlackElo "2682"]
[TimeControl "180+1"]
[EndTime "9:53:40 PST"]
[Termination "kingofthenil won by resignation"]

1. d4 {[%clk 0:02:57.7]} 1... Nf6 {[%clk 0:00:27]} 2. c4 {[%clk 0:02:57.6]} 2...
e6 {[%clk 0:00:27.6]} 3. Nc3 {[%clk 0:02:58.2]} 3... Bb4 {[%clk 0:00:26.3]} 4.
Nf3 {[%clk 0:02:58.7]} 4... b6 {[%clk 0:00:26]} 5. Bg5 {[%clk 0:02:58.9]} 5...
Bb7 {[%clk 0:00:25.3]} 6. e3 {[%clk 0:02:59.5]} 6... h6 {[%clk 0:00:25.5]} 7.
Bh4 {[%clk 0:03:00.1]} 7... g5 {[%clk 0:00:26.1]} 8. Bg3 {[%clk 0:03:00.9]} 8...
Ne4 {[%clk 0:00:27]} 9. Qc2 {[%clk 0:03:01.2]} 9... d6 {[%clk 0:00:25.9]} 10.
Bd3 {[%clk 0:03:01.2]} 10... f5 {[%clk 0:00:25.6]} 11. d5 {[%clk 0:03:01.1]}
11... Qf6 {[%clk 0:00:23.1]} 12. dxe6 {[%clk 0:02:56.5]} 12... Nxc3 {[%clk
0:00:21.5]} 13. O-O {[%clk 0:02:40.5]} 13... Ne4 {[%clk 0:00:18.7]} 14. a3
{[%clk 0:02:40.9]} 14... Bc5 {[%clk 0:00:06.4]} 15. b4 {[%clk 0:02:41.5]} 15...
O-O {[%clk 0:00:05.8]} 16. bxc5 {[%clk 0:02:39.6]} 16... Nxc5 {[%clk 0:00:06.7]}
17. Nd4 {[%clk 0:02:38.6]} 17... f4 {[%clk 0:00:02.6]} 18. exf4 {[%clk
0:02:39.3]} 18... gxf4 {[%clk 0:00:03.5]} 19. e7 {[%clk 0:02:09.5]} 19... Qxe7
{[%clk 0:00:03.9]} 20. Nf5 {[%clk 0:02:10.1]} 20... Rxf5 {[%clk 0:00:02.2]} 21.
Bxf5 {[%clk 0:02:11]} 21... f3 {[%clk 0:00:02.8]} 22. Rfe1 {[%clk 0:02:07.7]}
22... Qf7 {[%clk 0:00:02.1]} 23. Bg6 {[%clk 0:02:05.7]} 23... Qf6 {[%clk
0:00:01.8]} 24. Re8+ {[%clk 0:02:01.9]} 24... Kg7 {[%clk 0:00:02]} 25. Rae1
{[%clk 0:01:58.3]} 25... Nc6 {[%clk 0:00:02.5]} 26. Rxa8 {[%clk 0:01:43.1]}
26... Bxa8 {[%clk 0:00:03.4]} 27. Be4 {[%clk 0:01:43.2]} 27... Nd4 {[%clk
0:00:03.5]} 28. Qd3 {[%clk 0:01:42.4]} 28... Nxd3 {[%clk 0:00:03.5]} 29. Bxd3
{[%clk 0:01:42]} 29... fxg2 {[%clk 0:00:03.8]} 30. c5 {[%clk 0:01:39.5]} 30...
Nf3+ {[%clk 0:00:03.8]} 0-1

[Event "Early-Titled-Tuesday-Blitz-February-06-2024"]
[Site "Chess.com"]
[Date "2024.02.06"]
[Round "10"]
[White "Drags95"]
[Black "manitodeplomo"]
[Result "1-0"]
[WhiteElo "2834"]
[BlackElo "2600"]
[TimeControl "180+1"]
[EndTime "9:53:41 PST"]
[Termination "Drags95 won on time"]

1. d4 {[%clk 0:02:58.7]} 1... g6 {[%clk 0:02:58.9]} 2. c4 {[%clk 0:02:56.5]}
2... Bg7 {[%clk 0:02:58.4]} 3. e4 {[%clk 0:02:56.7]} 3... d6 {[%clk 0:02:57.2]}
4. Nc3 {[%clk 0:02:56.9]} 4... Nf6 {[%clk 0:02:56.8]} 5. Be2 {[%clk 0:02:55.9]}
5... O-O {[%clk 0:02:57.2]} 6. Be3 {[%clk 0:02:56]} 6... c5 {[%clk 0:02:54.5]}
7. d5 {[%clk 0:02:54]} 7... e6 {[%clk 0:02:49]} 8. Nf3 {[%clk 0:02:54.3]} 8...
exd5 {[%clk 0:02:48.1]} 9. cxd5 {[%clk 0:02:54.1]} 9... b5 {[%clk 0:02:47.3]}
10. e5 {[%clk 0:02:54.3]} 10... dxe5 {[%clk 0:02:43]} 11. Bxc5 {[%clk
0:02:54.8]} 11... Re8 {[%clk 0:02:40.4]} 12. Bxb5 {[%clk 0:02:55.3]} 12... Bd7
{[%clk 0:02:35.3]} 13. Be2 {[%clk 0:02:52.6]} 13... e4 {[%clk 0:02:26.2]} 14.
Nd2 {[%clk 0:02:46.4]} 14... Bc8 {[%clk 0:02:08.4]} 15. Nc4 {[%clk 0:02:44.9]}
15... Nbd7 {[%clk 0:02:05.3]} 16. Be3 {[%clk 0:02:43.7]} 16... Ne5 {[%clk
0:01:59.9]} 17. Nxe5 {[%clk 0:02:33.5]} 17... Rxe5 {[%clk 0:02:00.8]} 18. Bf4
{[%clk 0:02:33.9]} 18... Rf5 {[%clk 0:01:56.7]} 19. Bg3 {[%clk 0:02:23.9]} 19...
Nxd5 {[%clk 0:01:54.1]} 20. Bg4 {[%clk 0:02:20.1]} 20... Rg5 {[%clk 0:01:51.1]}
21. Bxc8 {[%clk 0:02:11.8]} 21... Rxc8 {[%clk 0:01:52]} 22. Bh4 {[%clk
0:02:07.7]} 22... Nxc3 {[%clk 0:00:18.9]} 23. Qxd8+ {[%clk 0:02:06]} 23... Rxd8
{[%clk 0:00:16.9]} 24. Bxg5 {[%clk 0:02:06.8]} 24... Rd5 {[%clk 0:00:12.4]} 25.
Be3 {[%clk 0:01:52.7]} 25... Na4 {[%clk 0:00:10.8]} 26. Rd1 {[%clk 0:01:51.9]}
26... Rxd1+ {[%clk 0:00:10.6]} 27. Kxd1 {[%clk 0:01:52.8]} 27... Nxb2+ {[%clk
0:00:10.9]} 28. Kc2 {[%clk 0:01:52]} 28... Nc4 {[%clk 0:00:02.1]} 29. Bxa7
{[%clk 0:01:51.1]} 29... f5 {[%clk 0:00:01.6]} 30. a4 {[%clk 0:01:46.4]} 30...
Kf7 {[%clk 0:00:01.1]} 31. Rd1 {[%clk 0:01:43.2]} 1-0

[Event "Early-Titled-Tuesday-Blitz-February-06-2024"]
[Site "Chess.com"]
[Date "2024.02.06"]
[Round "10"]
[White "maurovargas01"]
[Black "HittingRookBottom"]
[Result "1-0"]
[WhiteElo "1889"]
[BlackElo "2004"]
[TimeControl "180+1"]
[EndTime "9:53:43 PST"]
[Termination "maurovargas01 won by resignation"]

1. e4 {[%clk 0:02:46.6]} 1... c6 {[%clk 0:02:59.8]} 2. Nc3 {[%clk 0:02:45.9]}
2... d5 {[%clk 0:02:59.9]} 3. d3 {[%clk 0:02:46.3]} 3... dxe4 {[%clk 0:02:58.9]}
4. Nxe4 {[%clk 0:02:46.7]} 4... Nf6 {[%clk 0:02:59]} 5. Qe2 {[%clk 0:02:43.6]}
5... Nxe4 {[%clk 0:02:56.7]} 6. Qxe4 {[%clk 0:02:43.1]} 6... Nd7 {[%clk
0:02:56.1]} 7. Nf3 {[%clk 0:02:42]} 7... Nf6 {[%clk 0:02:56.5]} 8. Qe2 {[%clk
0:02:41.3]} 8... Bg4 {[%clk 0:02:57]} 9. h3 {[%clk 0:02:40.9]} 9... Bxf3 {[%clk
0:02:56.9]} 10. Qxf3 {[%clk 0:02:40.8]} 10... e6 {[%clk 0:02:57.5]} 11. Be2
{[%clk 0:02:40.5]} 11... Bd6 {[%clk 0:02:57.4]} 12. O-O {[%clk 0:02:40]} 12...
Qc7 {[%clk 0:02:55.4]} 13. a3 {[%clk 0:02:26]} 13... O-O-O {[%clk 0:02:54.6]}
14. Be3 {[%clk 0:02:10.8]} 14... Nd5 {[%clk 0:02:51.6]} 15. Bxa7 {[%clk
0:02:03.2]} 15... b6 {[%clk 0:02:49]} 16. c4 {[%clk 0:01:54.7]} 16... Nf6 {[%clk
0:02:39.6]} 17. d4 {[%clk 0:01:46.1]} 17... Qxa7 {[%clk 0:02:36.7]} 18. Qxc6+
{[%clk 0:01:35.2]} 18... Qc7 {[%clk 0:02:36.9]} 19. Qb5 {[%clk 0:01:33.3]} 19...
Ne4 {[%clk 0:01:47.1]} 20. Bf3 {[%clk 0:01:25.2]} 20... Nd2 {[%clk 0:01:43.5]}
21. Bc6 {[%clk 0:01:07.4]} 21... Qb8 {[%clk 0:00:42.9]} 22. Rfc1 {[%clk
0:01:03.4]} 22... Bc7 {[%clk 0:00:32.9]} 23. Qa6+ {[%clk 0:00:59]} 1-0

[Event "Early-Titled-Tuesday-Blitz-February-06-2024"]
[Site "Chess.com"]
[Date "2024.02.06"]
[Round "10"]
[White "SarochaChuemsakul"]
[Black "NewYearGirl"]
[Result "0-1"]
[WhiteElo "2417"]
[BlackElo "2362"]
[TimeControl "180+1"]
[EndTime "9:53:47 PST"]
[Termination "NewYearGirl won by resignation"]

1. d4 {[%clk 0:02:50.4]} 1... Nf6 {[%clk 0:03:00.3]} 2. c4 {[%clk 0:02:49.9]}
2... c5 {[%clk 0:03:00.9]} 3. d5 {[%clk 0:02:50.3]} 3... b5 {[%clk 0:03:01.5]}
4. Qc2 {[%clk 0:02:50.3]} 4... b4 {[%clk 0:02:54.6]} 5. e4 {[%clk 0:02:51.2]}
5... d6 {[%clk 0:02:54.5]} 6. b3 {[%clk 0:02:51.2]} 6... g6 {[%clk 0:02:53.5]}
7. Bb2 {[%clk 0:02:51.3]} 7... Bg7 {[%clk 0:02:53.9]} 8. Nd2 {[%clk 0:02:47.3]}
8... O-O {[%clk 0:02:53.2]} 9. Bd3 {[%clk 0:02:47.8]} 9... a5 {[%clk 0:02:50.1]}
10. Ngf3 {[%clk 0:02:47.3]} 10... a4 {[%clk 0:02:49.5]} 11. O-O {[%clk
0:02:47.5]} 11... a3 {[%clk 0:02:48.9]} 12. Bxf6 {[%clk 0:02:45]} 12... Bxf6
{[%clk 0:02:48.2]} 13. Rae1 {[%clk 0:02:45.9]} 13... Bc3 {[%clk 0:02:36.4]} 14.
e5 {[%clk 0:02:45]} 14... dxe5 {[%clk 0:02:30]} 15. Nxe5 {[%clk 0:02:41.4]}
15... Bb7 {[%clk 0:02:28.8]} 16. Re3 {[%clk 0:02:13.5]} 16... Nd7 {[%clk
0:02:28]} 17. Ng4 {[%clk 0:02:05.8]} 17... Nf6 {[%clk 0:02:01.9]} 18. Nxf6+
{[%clk 0:01:59.9]} 18... exf6 {[%clk 0:02:00.6]} 19. Ne4 {[%clk 0:01:59.6]}
19... Bd4 {[%clk 0:01:54]} 20. Rf3 {[%clk 0:01:59.4]} 20... f5 {[%clk
0:01:53.3]} 21. Ng3 {[%clk 0:01:55]} 21... Re8 {[%clk 0:01:43.5]} 22. Bxf5
{[%clk 0:01:51.5]} 22... gxf5 {[%clk 0:01:33.8]} 23. Nxf5 {[%clk 0:01:52.4]}
23... Qf6 {[%clk 0:01:10.9]} 24. g4 {[%clk 0:01:16.1]} 24... Bc8 {[%clk
0:00:59.3]} 25. g5 {[%clk 0:01:10.3]} 25... Bxf5 {[%clk 0:00:50.6]} 26. Rxf5
{[%clk 0:00:58]} 26... Qg6 {[%clk 0:00:48.9]} 27. h4 {[%clk 0:00:55]} 27... Re5
{[%clk 0:00:47.1]} 0-1